[Event "Fall GM-B Norm Invitational 2022"]
[Site "Charlotte"]
[Date "2022.11.20"]
[Round "5"]
[White "Williams, Justus"]
[Black "Paragua, Mark"]
[Result "1-0"]
[ECO "A07"]
[WhiteElo "2395"]
[BlackElo "2466"]
[Annotator "TA"]
[PlyCount "80"]
[EventDate "2022.11.18"]
[EventType "tourn"]
[EventCountry "USA"]
[SourceTitle "playchess.com"]
[Source "ChessBase"]
[SourceQuality "1"]
[TimeControl "5400+30"]

{[%evp 10,80,7,-2,0,0,0,-2,12,7,-2,19,31,43,33,37,46,33,41,26,43,41,39,38,110,98,100,97,103,14,21,22,12,-4,1,-14,30,-22,32,26,28,0,0,0,0,0,0,0,110,115,121,125,181,169,184,0,4,0,78,0,78,78,78,78,78,78,537,527,664,664,664,664,29998]} 1. Nf3 {[%emt 0:04:33]} d5 {[%emt 0:00:27]} 2. g3 {[%emt 0:00:25]} g6 {[%emt 0:00:51]} 3. Bg2 {[%emt 0:00:27]} Bg7 {[%emt 0:00:07]} 4. O-O {[%emt 0:00:46]} e5 {[%emt 0:00:34]} 5. d3 {[%emt 0:00:26]} Ne7 {[%emt 0:01:09]} 6. c4 {[%emt 0:00:48]} O-O {[%emt 0:12:00] A07: Réti Opening: New York and Capablanca Systems.} 7. cxd5 {[%emt 0:01:12]} Nxd5 {[%emt 0:00:04]} 8. Nc3 {[%emt 0:00:13]} Ne7 {[%emt 0:01:59] The position is equal.} 9. Rb1 $1 {[%emt 0:01:01]} a5 {[%emt 0:03:20]} 10. a3 {[%emt 0:01:10][%cal Ba2a3,Ba3b4,Bb4b5][%mdl 32] [#]} h6 $146 {[%emt 0:06:59]} ({Predecessor:} 10... Nbc6 11. b4 axb4 12. axb4 Nd4 13. Bg5 h6 14. Bxe7 Qxe7 15. Nd5 Qd8 16. Nxd4 exd4 17. b5 Ra2 18. Bf3 Re8 {0-1 (33) Reshko,A-Lukin,A Leningrad 1972}) 11. b4 {[%emt 0:02:33]} axb4 {[%emt 0:01:50]} 12. axb4 {[%emt 0:00:03]} Be6 {[%emt 0:02:19]} 13. Bb2 {[%emt 0:01:42]} Nbc6 {[%emt 0:01:14]} 14. b5 {[%emt 0:06:30]} Nd4 {[%emt 0:10:42]} 15. Nd2 {[%emt 0:01:32]} Qd7 {[%emt 0:17:09]} 16. Nc4 {[%emt 0:04:02]} Bh3 {[%emt 0:03:26]} (16... Rfd8 $14) 17. Bxh3 $1 $16 {[%emt 0:01:16]} Qxh3 {[%emt 0:00:07]} 18. e3 {[%emt 0:00:31]} Ne6 {[%emt 0:02:50]} 19. Ba3 {[%emt 0:02:51]} (19. Ne4 $16) 19... Rfe8 $11 {[%emt 0:04:13]} 20. b6 {[%emt 0:03:10]} c6 {[%emt 0:01:05]} 21. Ne4 {[%emt 0:01:52]} Nd5 {[%emt 0:00:50]} 22. Bb2 {[%emt 0:01:32]} Rad8 {[%emt 0:15:54]} (22... f5 $5 {[%cal Rf5e4]} 23. Ned2 (23. Ned6 Re7 $11) 23... Nc5 $11) 23. Nxe5 {[%emt 0:05:45]} (23. f3 $142) 23... f5 {[%emt 0:04:49]} (23... Nf8 $11 24. Nc4 Rxe4 25. dxe4 Nxe3 26. Nxe3 Rxd1 27. Rfxd1 Ne6) 24. Nd2 $14 {[%emt 0:01:08]} f4 $1 {[%emt 0:00:35]} 25. Ndc4 $36 {[%emt 0:04:12][%mdl 2048] White is more active.} (25. exf4 $2 Nexf4 $1 {[%mdl 512]} 26. gxf4 Nxf4 $19) (25. Ne4 $5 {[%cal Re5g6]}) 25... Ng5 $1 {[%emt 0:02:13]} 26. Kh1 {[%emt 0:22:45]} ({Much weaker is} 26. exf4 Nxf4 27. gxf4 Bxe5 28. Nxe5 Rxe5 $1 $17) (26. gxf4 $2 Bxe5 27. Nxe5 Rxe5 $1 {[%mdl 512]} 28. Bxe5 Nf3+ 29. Qxf3 Qxf3 $19) 26... fxg3 {[%emt 0:01:02]} 27. fxg3 {[%emt 0:00:11]} Bxe5 {[%emt 0:03:55]} 28. Bxe5 {[%emt 0:00:33] Hoping for e4.} Nxe3 {[%emt 0:01:57]} 29. Nxe3 $16 {[%emt 0:00:21] The board is on fire.} Rxe5 {[%emt 0:00:05]} 30. Ng4 {[%emt 0:00:46]} Re6 {[%emt 0:01:06]} (30... Ne4 $16 31. Qf3 (31. Nxe5 Nxg3+ 32. Kg1 Nxf1 $15) 31... Rf5 32. Nxh6+ Qxh6 33. Qxe4 Qf8) 31. Rb4 $18 {[%emt 0:02:25]} h5 {[%emt 0:00:36]} 32. Nh6+ {[%emt 0:01:25]} (32. Nf6+ $1 $18 Kg7 33. Rh4 Qxf1+ 34. Qxf1 Rxf6 35. Qe1) 32... Kg7 {[%emt 0:00:01]} 33. Rh4 {[%emt 0:00:10]} Qxf1+ {[%emt 0:00:31]} 34. Qxf1 {[%emt 0:00:03]} Kxh6 {[%emt 0:00:05]} (34... Rde8 $1 $11 {remains equal.} 35. Nf5+ gxf5 36. Rxh5 Kg6 37. Rxg5+ Kxg5 38. Qf4+ Kg6) 35. Qc1 $16 {[%emt 0:02:29]} Rxd3 {[%emt 0:00:29]} 36. Rf4 $1 {[%emt 0:00:32] aiming for h4.} Rde3 {[%emt 0:01:18] Threatens to win with ...Re1+.} 37. Rf1 {[%emt 0:00:02][%mdl 1024] Against Re1. And now h4 would win. White has strong compensation.} Kg7 $2 {[%emt 0:00:33][%mdl 8192] Loses the game.} (37... Kh7 $16) 38. Qa1+ $1 $18 {[%emt 0:00:34] White is clearly winning.} Kh7 {[%emt 0:00:33] [#]} 39. h4 $1 {[%emt 0:00:55]} Nf3 {[%emt 0:00:29] [#] ...Re1 is the strong threat.} 40. Qa8 $1 {[%emt 0:00:14]} Nd4 {[%emt 0:00:33] Weighted Error Value: White=0.14 (very precise) /Black=0.35} 1-0

[Event "Fall GM-B Norm Invitational 2022"]
[Site "Charlotte"]
[Date "2022.11.20"]
[Round "5"]
[White "Ngo, Bach"]
[Black "Beradze, Irakli"]
[Result "1/2-1/2"]
[ECO "D02"]
[WhiteElo "2275"]
[BlackElo "2494"]
[Annotator "TA"]
[PlyCount "96"]
[EventDate "2022.11.18"]
[EventType "tourn"]
[EventCountry "USA"]
[SourceTitle "playchess.com"]
[Source "ChessBase"]
[SourceQuality "1"]
[TimeControl "5400+30"]

{[%evp 10,96,5,0,0,0,11,0,37,27,45,15,27,41,34,27,20,13,11,-57,21,30,38,37,37,0,0,0,0,0,15,0,0,0,33,20,7,0,0,0,22,14,14,18,42,6,27,18,23,18,18,18,18,18,18,-4,0,0,0,-2,0,0,0,-5,0,-3,-5,-5,-3,-3,-3,-8,-7,-6,-6,-8,-5,-5,-5,-7,-7,-7,0,0,0,-2,0,-9,0]} 1. d4 {[%emt 0:02:34]} d5 {[%emt 0:02:39]} 2. Nf3 {[%emt 0:00:06]} e6 {[%emt 0:00:07]} 3. c4 {[%emt 0:00:18]} c6 {[%emt 0:00:03]} 4. Bg5 {[%emt 0:00:09]} Be7 {[%emt 0:04:10]} 5. Bxe7 {[%emt 0:00:12]} Qxe7 {[%emt 0:00:18]} 6. Nbd2 {[%emt 0:00:26]} Nf6 {[%emt 0:00:36] Inhibits e4. D30: Queen's Gambit Declined: Systems without Nc3.} 7. g3 {[%emt 0:01:29]} b6 {[%emt 0:07:44]} 8. Bg2 {[%emt 0:02:58] [#]} Ba6 $146 {[%emt 0:00:13]} ({Predecessor:} 8... Bb7 9. O-O O-O 10. Qc2 Na6 {½-½ (10) Gyimesi,Z (2595)-Kogan,A (2526) Plovdiv 2010}) 9. Qc2 {[%emt 0:07:00]} O-O {[%emt 0:00:25]} 10. O-O {[%emt 0:00:35]} Nbd7 {[%emt 0:01:20]} 11. Rfe1 {[%emt 0:07:37]} Rac8 {[%emt 0:06:22]} 12. Rac1 {[%emt 0:07:29]} Rfd8 {[%emt 0:17:58]} 13. Qa4 {[%emt 0:17:11]} Nb8 {[%emt 0:06:14]} 14. e4 {[%emt 0:02:59]} ({White should play} 14. e3 $11) 14... dxc4 {[%emt 0:01:23]} (14... dxe4 $15 15. Nxe4 Nxe4 16. Rxe4 b5) 15. Nxc4 $11 {[%emt 0:00:47]} b5 {[%emt 0:01:46]} 16. Qa3 {[%emt 0:00:19]} c5 {[%emt 0:01:03]} 17. e5 {[%emt 0:01:31]} bxc4 {[%emt 0:18:55]} 18. exf6 {[%emt 0:00:09]} Qxf6 {[%emt 0:07:24]} 19. dxc5 {[%emt 0:00:59]} Rd5 {[%emt 0:00:01] Prevents Ne5.} 20. b3 {[%emt 0:05:52]} Rdxc5 {[%emt 0:01:17]} 21. Nd2 {[%emt 0:00:36] [#] aiming for Ne4.} Qd4 {[%emt 0:05:16]} (21... c3 $2 22. Ne4 Qf5 23. Nxc5 Rxc5 24. Red1 $18) 22. Ne4 {[%emt 0:00:54]} Rd5 {[%emt 0:01:09]} 23. bxc4 {[%emt 0:08:44]} Rxc4 {[%emt 0:04:19]} 24. Rb1 {[%emt 0:00:40]} Rc8 {[%emt 0:02:57] [#]} 25. Rxb8 $1 {[%emt 0:01:36][%mdl 64] Remove Defender} Rxb8 {[%emt 0:00:03]} 26. Qxa6 {[%emt 0:00:07]} h6 {[%emt 0:01:32]} 27. h4 {[%emt 0:00:30]} Rdb5 {[%emt 0:00:20]} 28. Re3 {[%emt 0:04:18]} Rb2 {[%emt 0:03:00]} 29. Rd3 {[%emt 0:01:35] Chess con chili.} Rxa2 {[%emt 0:01:47] The position is equal.} 30. Qxa2 {[%emt 0:00:15]} ({Don't play} 30. Rxd4 Rxa6 31. Bf3 Ra2 $11) 30... Qxd3 {[%emt 0:00:03]} 31. Qxa7 {[%emt 0:00:47]} Rc8 {[%emt 0:01:21]} 32. Qe3 {[%emt 0:00:56]} Qxe3 {[%emt 0:00:12]} 33. fxe3 {[%emt 0:00:06]} Rc2 {[%emt 0:00:12]} 34. Bf3 {[%emt 0:00:49] Inhibits Re2.} Kf8 {[%emt 0:00:26]} 35. Kf1 {[%emt 0:00:14]} Ke7 {[%emt 0:00:02]} 36. Bd1 {[%emt 0:00:32]} Rb2 {[%emt 0:00:25]} 37. Be2 {[%emt 0:00:19]} f5 {[%emt 0:00:15]} 38. Nc5 {[%emt 0:00:15]} g5 {[%emt 0:00:53]} 39. hxg5 {[%emt 0:00:06]} hxg5 {[%emt 0:00:00]} 40. Kf2 {[%emt 0:00:19]} Rc2 {[%emt 0:00:26]} 41. Nd3 {[%emt 0:00:15]} Kf6 {[%emt 0:00:19]} 42. Nb4 {[%emt 0:01:19]} Rd2 {[%emt 0:00:12]} 43. Ke1 {[%emt 0:00:08]} Rd8 {[%emt 0:01:29]} 44. Kf2 {[%emt 0:00:14]} Rb8 {[%emt 0:01:16]} 45. Nd3 {[%emt 0:00:31]} Ke7 {[%emt 0:01:11]} 46. Ne5 {[%emt 0:00:15] Threatens to win with Nc6+.} Rb2 {[%emt 0:00:19]} 47. Nd3 {[%emt 0:00:49]} Rd2 {[%emt 0:00:17]} 48. Ne5 {[%emt 0:00:13]} Ra2 {[%emt 0:00:20] Weighted Error Value: White=0.09 (flawless) /Black=0.09 (flawless)} 1/2-1/2

[Event "Fall GM-B Norm Invitational 2022"]
[Site "Charlotte"]
[Date "2022.11.20"]
[Round "6"]
[White "Kantor, Gergely"]
[Black "Woodward, Andy"]
[Result "1/2-1/2"]
[ECO "A15"]
[WhiteElo "2561"]
[BlackElo "2447"]
[Annotator "TA"]
[PlyCount "83"]
[EventDate "2022.11.18"]
[EventType "tourn"]
[EventCountry "USA"]
[SourceTitle "playchess.com"]
[Source "ChessBase"]
[SourceQuality "1"]
[TimeControl "5400+30"]

{[%evp 11,83,25,35,7,8,14,6,9,13,0,0,7,14,16,33,36,27,35,31,29,29,20,25,33,30,38,25,21,27,22,66,71,69,70,57,37,106,24,150,144,160,133,271,0,188,187,175,158,118,-11,0,0,0,0,0,0,0,0,194,0,0,0,0,0,0,0,0,-8,0,0,0,-8,0,0]} 1. Nf3 {[%emt 0:03:59]} Nf6 {[%emt 0:00:11]} 2. c4 {[%emt 0:00:36]} g6 {[%emt 0:00:07]} 3. Nc3 {[%emt 0:00:14]} d5 {[%emt 0:00:06]} 4. cxd5 {[%emt 0:00:03]} Nxd5 {[%emt 0:00:07]} 5. e4 {[%emt 0:01:23]} Nxc3 {[%emt 0:00:07]} 6. bxc3 {[%emt 0:00:02]} Bg7 {[%emt 0:00:09]} 7. Rb1 {[%emt 0:00:05] A16: English Opening: 1...Nf6 with ...d5.} O-O {[%emt 0:00:23]} 8. h4 {[%emt 0:00:06]} c5 {[%emt 0:03:44]} 9. h5 {[%emt 0:00:36]} Nc6 {[%emt 0:03:17]} 10. hxg6 {[%emt 0:01:51]} hxg6 {[%emt 0:00:51]} 11. Qe2 {[%emt 0:00:35] [#]} Qa5 $146 {[%emt 0:04:22]} ({Predecessor:} 11... b6 12. Qe3 Qd6 13. Qg5 Qe6 14. Qh4 Rd8 15. Bb5 Rd6 16. Ng5 Qxa2 17. Rb2 Qa1 {1-0 (39) Gelfand,B (2676)-Ivanchuk,V (2678) chess24.com INT 2020}) 12. Rb2 {[%emt 0:03:25]} Rd8 {[%emt 0:09:15]} 13. Qe3 {[%emt 0:03:01]} Bg4 {[%emt 0:04:21]} 14. Ng5 {[%emt 0:04:48][%cal Og5f7]} Qxc3 $1 {[%emt 0:09:06]} 15. Qxc3 {[%emt 0:01:18] Chess con chili.} ({Wrong is} 15. Rh8+ $2 Bxh8 16. Qxc3 Bxc3 $19) 15... Bxc3 {[%emt 0:00:18]} 16. Rh4 $1 {[%emt 0:01:42]} Bxb2 {[%emt 0:20:23]} 17. Bxb2 $40 {[%emt 0:00:22][%csl Gb2][%cal Rh4h8][%mdl 128] White mounts an attack.} f6 $1 {[%emt 0:00:04]} ({Not} 17... Bh5 18. g4 $16) 18. Bc4+ {[%emt 0:01:04]} Kf8 {[%emt 0:00:15]} 19. Rxg4 {[%emt 0:07:43]} fxg5 {[%emt 0:00:11]} 20. Rxg5 {[%emt 0:00:21]} Nd4 {[%emt 0:00:49]} 21. Rxg6 {[%emt 0:29:37][%csl Gc4][%cal Rg6g8]} e6 {[%emt 0:00:24]} 22. Bxe6 {[%emt 0:10:03]} Nxe6 {[%emt 0:01:36]} 23. Rxe6 $14 {[%emt 0:00:04][%mdl 4096] Endgame KRR-KRB} Kf7 {[%emt 0:02:27]} (23... Rd7 $14) 24. Rh6 {[%emt 0:04:27]} (24. Rf6+ $1 $16 Ke7 25. Rf5) 24... b5 {[%emt 0:00:18]} (24... Rg8 $11 {keeps the balance.}) 25. f4 $1 $16 {[%emt 0:05:45][%cal Bf2f4,Bf4f5][%mdl 32]} Rg8 {[%emt 0:02:17]} 26. f5 $1 {[%emt 0:06:29]} Rxg2 {[%emt 0:00:55]} (26... Raf8 $16) 27. e5 $2 {[%emt 0:02:04]} (27. Rh7+ $18 Kf8 28. Bf6) 27... Rf8 $2 {[%emt 0:03:34]} (27... Rg1+ $1 $11 28. Ke2 Kg7) 28. e6+ $1 $18 {[%emt 0:05:49][%mdl 1024] White has strong compensation.} Ke7 {[%emt 0:00:12]} 29. Rh7+ {[%emt 0:00:50]} Kd6 {[%emt 0:00:22] [#]} 30. e7 {[%emt 0:02:45] White is more active.} (30. Rd7+ $1 $16 Kc6 31. f6) 30... Rfg8 {[%emt 0:02:30]} 31. Kd1 {[%emt 0:02:50]} Rf2 {[%emt 0:00:35]} 32. Rf7 {[%emt 0:01:55]} Kd7 {[%emt 0:06:06] Hoping for ...Rgg2.} 33. f6 {[%emt 0:00:24] Threatens to win with Rf8.} Ke8 {[%emt 0:03:02] Against Rf8+} 34. Rh7 {[%emt 0:00:26]} c4 $2 {[%emt 0:00:36] [#]} (34... Kd7 $11 {and Black stays safe.}) 35. Ke1 $2 {[%emt 0:00:29]} (35. Rh5 $1 $18) 35... Rf5 $11 {[%emt 0:00:30] The position is equal.} 36. Ke2 {[%emt 0:00:29] And now Ke3 would win.} b4 {[%emt 0:00:23][%cal Oc4c3]} 37. Bd4 {[%emt 0:00:07] Inhibits c3.} Kd7 $1 {[%emt 0:02:07]} 38. Ke3 {[%emt 0:00:45] Strongly threatening f7.} Ke6 {[%emt 0:00:08] Against f7} 39. Rg7 {[%emt 0:00:30]} Rh8 {[%emt 0:02:14]} 40. Rh7 {[%emt 0:00:51]} Rg8 {[%emt 0:00:17]} 41. Rg7 {[%emt 0:00:29]} Rh8 {[%emt 0:00:04]} 42. Ke4 {Blacks defense is rewarded with a draw.  Weighted Error Value: White=0.20 (precise) /Black=0.25 (precise)} 1/2-1/2

[Event "Fall GM-B Norm Invitational 2022"]
[Site "Charlotte"]
[Date "2022.11.20"]
[Round "6"]
[White "Cruz, Cristhian"]
[Black "Korley, Kassa"]
[Result "1/2-1/2"]
[ECO "D45"]
[WhiteElo "2552"]
[BlackElo "2451"]
[Annotator "TA"]
[PlyCount "42"]
[EventDate "2022.11.18"]
[EventType "tourn"]
[EventCountry "USA"]
[SourceTitle "playchess.com"]
[Source "ChessBase"]
[SourceQuality "1"]
[TimeControl "5400+30"]

{[%evp 21,29,-4,17,17,34,13,12,5,15,7]} 1. d4 {[%emt 0:03:12]} d5 {[%emt 0:00:02]} 2. c4 {[%emt 0:00:28]} c6 {[%emt 0:00:05]} 3. Nc3 {[%emt 0:00:37]} Nf6 {[%emt 0:00:06]} 4. e3 {[%emt 0:00:53]} e6 {[%emt 0:04:37]} 5. Nf3 {[%emt 0:01:04]} Nbd7 {[%emt 0:00:07]} 6. Qc2 {[%emt 0:01:24]} Bd6 {[%emt 0:00:08]} 7. e4 {[%emt 0:01:51]} Nxe4 {[%emt 0:03:38]} 8. Nxe4 {[%emt 0:00:07]} dxe4 {[%emt 0:00:04]} 9. Qxe4 {[%emt 0:00:06]} Bb4+ {[%emt 0:11:02]} 10. Bd2 {[%emt 0:01:42]} Bxd2+ {[%emt 0:00:24]} 11. Nxd2 {[%emt 0:01:06]} c5 {[%emt 0:14:31]} 12. dxc5 {[%emt 0:02:20] D45: Semi-Slav: 5 e3.} Qc7 {[%emt 0:00:08]} 13. Be2 {[%emt 0:36:09]} Nxc5 {[%emt 0:09:42]} 14. Qe3 {[%emt 0:00:10]} a5 {[%emt 0:01:53]} 15. O-O {[%emt 0:04:45] [#] Not much happened in this game.  Weighted Error Value: White=0.06 (flawless) /Black=0.10 (very precise)} {Predecessor:} O-O $146 16. Nb3 b6 17. Bf3 Rb8 18. Nd4 Bd7 19. Rfe1 Rfe8 20. Nb5 Bxb5 21. cxb5 Red8 {½-½ (65) Martinovic,S (2362)-Jankovic,A (2548) Zadar 2007} 1/2-1/2

[Event "Fall GM-B Norm Invitational 2022"]
[Site "Charlotte"]
[Date "2022.11.20"]
[Round "6"]
[White "Beradze, Irakli"]
[Black "Hilby, Craig"]
[Result "1/2-1/2"]
[ECO "A05"]
[WhiteElo "2494"]
[BlackElo "2411"]
[Annotator "TA"]
[PlyCount "44"]
[EventDate "2022.11.18"]
[EventType "tourn"]
[EventCountry "USA"]
[SourceTitle "playchess.com"]
[Source "ChessBase"]
[SourceQuality "1"]
[TimeControl "5400+30"]

{[%evp 24,44,17,8,20,0,18,8,10,4,6,-35,-40,-36,-44,-41,0,0,-9,0,0,0,3]} 1. Nf3 {[%emt 0:01:18]} Nf6 {[%emt 0:00:39]} 2. g3 {[%emt 0:00:12]} d5 {[%emt 0:01:57]} 3. Bg2 {[%emt 0:00:06]} e6 {[%emt 0:00:25]} 4. O-O {[%emt 0:00:36]} c5 {[%emt 0:01:34]} 5. c4 {[%emt 0:00:20]} Nc6 {[%emt 0:01:59]} 6. d4 {[%emt 0:01:53]} Be7 {[%emt 0:07:50]} 7. cxd5 {[%emt 0:01:47]} exd5 {[%emt 0:00:11]} 8. b3 {[%emt 0:02:50]} O-O {[%emt 0:01:19]} 9. Bb2 {[%emt 0:00:04]} Ne4 {[%emt 0:02:07]} 10. dxc5 {[%emt 0:03:59]} Bxc5 {[%emt 0:01:10]} 11. Nc3 {[%emt 0:03:19]} Nxc3 {[%emt 0:04:27] 11...Be6 is not played anymore.} 12. Bxc3 {[%emt 0:00:34]} d4 {[%emt 0:00:10]} 13. Bb2 {[%emt 0:00:02][%cal Ob3b4]} Bf5 {[%emt 0:02:11] Prevents b4. D30: Queen's Gambit Declined: Systems without Nc3.} 14. Qc1 {[%emt 0:02:13]} Qe7 {[%emt 0:04:37]} 15. Qf4 {[%emt 0:02:44][%csl LRd4,LRf5]} Be4 {[%emt 0:06:26]} 16. Rfd1 {[%emt 0:20:41][%cal Rb2d4]} (16. Nxd4 {seems wilder.} Bxd4 17. Bxd4 Bxg2 18. Kxg2 Qxe2 19. Rfe1) 16... Rad8 {[%emt 0:03:46]} 17. Rac1 {[%emt 0:11:10]} (17. Nxd4 {is more complex.} Bxd4 18. Bxd4 Nxd4 19. Qxe4 Nxe2+ 20. Kf1) 17... Rfe8 {[%emt 0:07:23]} 18. Bf1 {[%emt 0:11:14]} h6 {[%emt 0:06:06] Inhibits Qg5.} 19. Qh4 {[%emt 0:04:59] [#]} d3 $146 {[%emt 0:06:00]} ({Predecessor:} 19... Qxh4 20. Nxh4 Bb6 21. Ng2 Nb4 22. Rc4 Nxa2 23. Bxd4 Nc3 24. Rxc3 Bxd4 25. Rcc1 Bb2 26. Rxd8 Rxd8 {½-½ (61) Hauchard,A (2450)-Salaun,Y (2370) France 1993}) 20. Qxe7 {[%emt 0:02:43] The position is equal.} Bxe7 {[%emt 0:00:04]} 21. Nd2 {[%emt 0:00:39]} dxe2 {[%emt 0:03:09]} 22. Bxe2 {[%emt 0:00:01]} Bd3 {[%emt 0:08:07] Weighted Error Value: White=0.08 (flawless) /Black=0.09 (flawless)} 1/2-1/2

[Event "Fall GM-B Norm Invitational 2022"]
[Site "Charlotte"]
[Date "2022.11.20"]
[Round "6"]
[White "Paragua, Mark"]
[Black "Ngo, Bach"]
[Result "1/2-1/2"]
[ECO "D37"]
[WhiteElo "2466"]
[BlackElo "2275"]
[Annotator "TA"]
[PlyCount "114"]
[EventDate "2022.11.18"]
[EventType "tourn"]
[EventCountry "USA"]
[SourceTitle "playchess.com"]
[Source "ChessBase"]
[SourceQuality "1"]
[TimeControl "5400+30"]

{[%evp 9,114,35,27,-2,-5,0,0,0,0,-8,15,0,0,-9,-4,-20,-16,-21,-6,0,28,18,33,15,55,48,39,-16,-12,-19,27,4,53,53,63,54,61,28,104,106,108,105,95,97,85,91,118,113,108,96,88,72,140,137,136,87,123,122,98,51,74,35,39,8,75,23,58,53,68,61,151,79,89,89,85,63,59,56,64,0,0,0,9,14,62,62,62,62,62,62,62,62,62,62,62,62,62,63,67,67,67,67,68,68,70,63,66]} 1. d4 {[%emt 0:00:05]} Nf6 {[%emt 0:02:51]} 2. c4 {[%emt 0:00:10]} e6 {[%emt 0:00:06]} 3. Nf3 {[%emt 0:00:08]} d5 {[%emt 0:00:05]} 4. Nc3 {[%emt 0:00:11]} dxc4 {[%emt 0:00:07]} 5. e4 {[%emt 0:05:54]} Bb4 {[%emt 0:00:22]} 6. Bxc4 {[%emt 0:00:33] D24: Queen's Gambit Accepted: 3 Nf3 Nf6 4 Nc3.} Nxe4 {[%emt 0:00:11]} 7. O-O {[%emt 0:00:06]} Nxc3 {[%emt 0:00:16]} 8. bxc3 {[%emt 0:00:04] The position is equal.} (8. Qb3 Nd5 9. Bxd5 Qxd5 $17) 8... Be7 {[%emt 0:00:14]} 9. Ne5 {[%emt 0:00:06]} O-O {[%emt 0:00:17]} 10. Qg4 {[%emt 0:00:12][%mdl 1024] White has compensation.} Nc6 {[%emt 0:00:46][%cal Bb8c6,Bc6e7,Be7g6][%mdl 32]} 11. Bh6 {[%emt 0:11:11][%csl Gh6][%cal Rg4g7]} Bf6 {[%emt 0:00:26]} 12. Rfe1 {[%emt 0:00:07]} Ne7 {[%emt 0:00:42]} 13. Rad1 {[%emt 0:02:04]} Ng6 {[%emt 0:02:14]} 14. Bc1 {[%emt 0:04:55] [#]} Bxe5 $146 (14... c5 $5) ({Predecessor:} 14... c5 15. Qh5 Bxe5 16. dxe5 Qh4 17. Qxh4 Nxh4 18. Bg5 Ng6 19. h4 h6 20. h5 Nxe5 21. Rxe5 hxg5 22. Rxc5 {½-½ (36) Eljanov,P (2716)-Jakovenko,D (2760) Jermuk 2009}) 15. dxe5 {[%emt 0:00:02]} Qh4 {[%emt 0:01:13]} 16. Qe2 {[%emt 0:09:19]} c5 {[%emt 0:17:14]} 17. g3 {[%emt 0:04:23]} Qh3 {[%emt 0:00:31]} 18. Qe4 {[%emt 0:07:34]} ({White should play} 18. Bd3 $14) 18... Rb8 $11 {[%emt 0:03:22]} 19. Bf1 {[%emt 0:03:30]} Qf5 {[%emt 0:00:29]} (19... Qh5 $142) 20. Qe2 $1 {[%emt 0:01:12] White wants to play g4.} f6 {[%emt 0:11:06]} (20... Ne7 $1 $11 {deserves consideration.}) 21. exf6 $14 {[%emt 0:02:18]} Qxf6 {[%emt 0:01:09]} 22. h4 {[%emt 0:00:39][%cal Bh2h4,Bh4h5][%mdl 32]} b6 {[%emt 0:09:01]} 23. Bg2 {[%emt 0:26:10]} (23. h5 $5 {[%cal Rh5g6]} Ne7 24. Bg2 $14) 23... Bb7 {[%emt 0:04:45] [#]} (23... e5 $1 $11) 24. h5 $1 $16 {[%emt 0:02:08]} (24. Qxe6+ $6 Qxe6 25. Rxe6 Bxg2 26. Kxg2 Rbe8 $11) 24... Bxg2 {[%emt 0:01:57]} 25. Kxg2 {[%emt 0:00:06]} Ne7 {[%emt 0:00:27]} (25... Ne5 $2 26. Bf4 Nc6 27. Bxb8 Nxb8 28. Qxe6+ Qf7 29. Re3 Qxe6 30. Rxe6 $18) 26. Qxe6+ {[%emt 0:00:33]} Qxe6 {[%emt 0:01:01]} 27. Rxe6 {[%emt 0:00:02]} Kf7 {[%emt 0:02:04] [#]} 28. Red6 {[%emt 0:00:29]} Rb7 {[%emt 0:04:41]} 29. h6 {[%emt 0:03:00]} gxh6 {[%emt 0:07:13]} 30. Bxh6 {[%emt 0:00:21]} Rc8 {[%emt 0:01:49]} ({Better is} 30... Rg8) 31. Bg5 {[%emt 0:01:51]} b5 {[%emt 0:03:11]} 32. f4 {[%emt 0:02:22]} (32. Re1 $142) 32... b4 {[%emt 0:02:18]} 33. c4 {[%emt 0:00:05]} a5 {[%emt 0:00:39]} 34. Ra6 {[%emt 0:03:30]} ({White should try} 34. Kf3 $16) 34... Rc6 $1 $14 {[%emt 0:00:22]} 35. Rxa5 {[%emt 0:01:22] And now Bxe7 would win.} Nf5 $1 {[%emt 0:00:42]} 36. Kf2 {[%emt 0:01:36] Inhibits Ne3. Threatens to win with Rh1.} Nd6 {[%emt 0:02:01]} (36... b3 $1 $11 37. axb3 Rxb3) 37. Ra8 {[%emt 0:00:44]} (37. Rh1 $16) 37... Nxc4 {[%emt 0:03:52]} 38. Rh1 {[%emt 0:00:43]} Kg7 {[%emt 0:01:37]} 39. f5 $1 {[%emt 0:02:02]} Nd6 {[%emt 0:02:16]} (39... Ne5 $14) 40. f6+ {[%emt 0:00:44]} (40. Bh6+ $142 Kf6 41. g4) 40... Kg6 $16 {[%emt 0:00:09]} 41. Rg8+ {[%emt 0:00:03]} Kf5 {[%emt 0:00:10]} 42. Kf3 {[%emt 0:00:05]} Nf7 {[%emt 0:02:23]} 43. g4+ {[%emt 0:00:11]} Ke5 {[%emt 0:01:20]} 44. Bf4+ {[%emt 0:00:16]} ({Don't play} 44. Rxh7 b3 45. Bf4+ Kd5 46. Rh5+ Kd4 47. Be3+ Kd3 48. axb3 (48. Rd5+ $2 Kc4 $19) 48... Rxf6+ 49. Rf5 Ne5+ 50. Kf4 Nxg4 51. Rd8+ (51. Kxg4 Rxf5 52. Kxf5 Kxe3 $11) (51. Rxg4 Rxf5+ 52. Kxf5 Kxe3 $11) (51. Bxc5 $2 Rxf5+ 52. Kxf5 Nh6+ 53. Ke5 Nxg8 $19) 51... Kc3 52. Kxg4 Rxf5 53. Kxf5 Kxb3 $11) (44. Bh4 $1 $14) 44... Kxf6 $11 {[%emt 0:01:41]} 45. Rxh7 {[%emt 0:00:07] aiming for g5+.} b3 $132 {[%emt 0:00:13][%mdl 2048] Black is not holding back} 46. axb3 {[%emt 0:00:52] g5+ is the strong threat.} Rxb3+ {[%emt 0:00:16]} (46... Ra6 $11) 47. Ke4 $1 $14 {[%emt 0:02:30] White is slightly better.} Rb4+ {[%emt 0:02:20]} 48. Kd5 $1 {[%emt 0:00:06]} Rxf4 {[%emt 0:00:07]} 49. Kxc6 {[%emt 0:00:59][%mdl 4096] Endgame KRR-KRN. Active counter play!} Ne5+ {[%emt 0:00:07]} 50. Kxc5 {[%emt 0:00:24] Strongly threatening g5+.} Rxg4 {[%emt 0:00:25]} 51. Rf8+ {[%emt 0:00:40]} Kg6 {[%emt 0:00:46]} 52. Re7 {[%emt 0:00:22]} Nd3+ {[%emt 0:00:09]} 53. Kd5 {[%emt 0:00:20] Black must now prevent Rg8+.} Nf4+ {[%emt 0:00:53]} 54. Kd6 {[%emt 0:00:02] White wants to mate with Rg8+.} Kg5 {[%emt 0:00:27]} 55. Ref7 {[%emt 0:01:11] White threatens Rf5+ and mate.} Ng6 {[%emt 0:00:44]} 56. Rf5+ {[%emt 0:00:05]} Kh6 {[%emt 0:00:13]} 57. Rg8 {[%emt 0:00:29]} Ra4 {[%emt 0:00:28] Weighted Error Value: White=0.13 (very precise) /Black=0.15 (very precise)} 1/2-1/2